Cogmind - Beta 14 @@@ ROGUE MODE // 2025.03.13 @ 07:35:23 Player: GEqualsPiSquared Result: Destroyed by Y-45 Defender with Heavy Assault Rifle Performance ------------- Evolutions (1) 500 Regions Visited (3) 600 Robots Destroyed (4) 20 Value Destroyed (131) 131 Prototype IDs (2) 40 Alien Tech Used (0) 0 Bonus (0) 0 TOTAL SCORE: 1291 Bonus ------- None Cogmind --------- Core Integrity 0/400 Matter 267/300 Energy 99/100 System Corruption 0% Temperature Cool (18) Movement Core (150) Ox2 Location -9/Mines Parts ------- > --- POWER (2) -------- (None) > --- PROPULSION (2) --- (None) > --- UTILITY (3) ------ Small Storage Unit Visual Processing Unit Sensor Array > --- WEAPON (2) ------- Light Assault Rifle > --- INVENTORY (8) ---- Large Storage Unit Peak State ------------ > --- POWER ------------ Light Ion Engine Improved Ion Engine > --- PROPULSION ------- Wheel Wheel > --- UTILITY ---------- Small Storage Unit Visual Processing Unit Sensor Array > --- WEAPON ----------- Light Assault Rifle Autogun > --- INVENTORY -------- Large Storage Unit Light Assault Rifle [Rating: 12] Favorites ----------- Power Light Ion Engine Engine Light Ion Engine Propulsion Wheel Leg Aluminum Leg Wheel Wheel Utility Small Storage Unit Device Sensor Array Storage Small Storage Unit Processor Visual Processing Unit Weapon Light Assault Rifle Ballistic Gun Light Assault Rifle Build | -11 -10 -9 -9 ------- Run | Yrd Mat Mat Min Slots Evolved 2 | . . 2 . Power 1 | . . 1 . Propulsion . | . . . . Utility 1 | . . 1 . Weapon . | . . . . Parts Attached 13 | 5 2 3 3 Power 2 | 1 . . 1 Engine 2 | 1 . . 1 Core . | . . . . Reactor . | . . . . Propulsion 3 | 2 . . 1 Treads . | . . . . Leg 1 | . . . 1 Wheel 2 | 2 . . . Hover . | . . . . Flight . | . . . . Utility 4 | . 2 2 . Device 1 | . . 1 . Storage 2 | . 2 . . Processor 1 | . . 1 . Hackware . | . . . . Protection . | . . . . Artifact . | . . . . Weapon 4 | 2 . 1 1 Energy Gun . | . . . . Energy Cannon . | . . . . Ballistic Gun 4 | 2 . 1 1 Ballistic Cannon . | . . . . Launcher . | . . . . Special Weapon . | . . . . Impact Weapon . | . . . . Slashing Weapon . | . . . . Piercing Weapon . | . . . . Special Melee Weapon . | . . . . Unidentified Prototypes . | . . . . Parts Lost 7 | . . . 7 Power 2 | . . . 2 Propulsion 3 | . . . 3 Utility . | . . . . Weapon 2 | . . . 2 Highest Loss Streak 4 | . . . 4 To Critical Strikes . | . . . . Average Slot Usage (%) 83 | . 79 81 87 Engine 13 | . 14 11 14 Leg 1 | . . . 2 Wheel 21 | . 28 22 15 Device 5 | . . 4 11 Storage 11 | . 8 17 11 Processor 6 | . . 5 11 Ballistic Gun 23 | . 28 21 21 Peak Build Rating 12 | 5 7 10 12 Average Rating 7 | 3 5 8 10 On Entrance 5 | . 5 7 10 Naked Turns . | . . . . Heaviest Build 30 | 5 30 30 20 Greatest Support 20 | 20 20 20 20 Greatest Overweight (x) 3 | . 1 1 3 Average Overweight (x) . | . . . . Largest Inventory Capacity 15 | 5 15 15 8 Average Capacity 8 | 5 8 11 8 Most Carried 2 | 2 . 2 2 Average Carried . | . . . 1 Final Capacity 15 | 5 15 8 8 Final Carried 2 | . . 2 1 Class Distribution -------------------- 100% | Mutant Dominant Class ---------------- Mutant | -10/Materials Mutant | -9/Materials Mutant | -9/Mines Resources | -11 -10 -9 -9 ----------- Run | Yrd Mat Mat Min Matter Collected 396 | 258 . 78 60 Remotely . | . . . . Salvage Created 169 | 39 . 122 8 Parts 7 | 1 . 6 . Haulers Intercepted . | . . . . Recyclers Shooed . | . . . . Parts Field Recycled . | . . . . Retrieved Matter . | . . . . Parts Self-Destructed . | . . . . Prevented . | . . . . Kills | -11 -10 -9 -9 ------- Run | Yrd Mat Mat Min Combat Hostiles Destroyed 6 | 1 . 2 3 Guns 6 | 1 . 2 3 Classes Destroyed 3 | 1 . 1 1 Watcher 1 | . . 1 . Grunt 3 | 1 . 2 . Assembled 3 | . . . 3 Best Kill Streak 3 | 1 . 2 3 Combat Bots Only 3 | 1 . 2 3 Max Kills in Single Turn 1 | 1 . 1 1 Gunslinging . | . . . . Exploded . | . . . . Melee . | . . . . Uniques/NPCs Destroyed . | . . . . Combat | -11 -10 -9 -9 -------- Run | Yrd Mat Mat Min Hostile Shots Fired 108 | 4 8 22 74 Missed 29 | 2 3 2 22 Damage Taken 1021 | 22 35 256 708 Core 416 | . 12 85 319 Absorbed by Shields . | . . . . Core Remaining (%) 97 | 100 95 . . Volleys Fired 46 | 4 2 17 23 Largest 2 | 2 2 2 2 Hottest 43 | 40 40 40 43 Shots Fired 84 | 8 4 34 38 Gun 84 | 8 4 34 38 Cannon . | . . . . Launcher . | . . . . Special . | . . . . Kinetic 84 | 8 4 34 38 Thermal . | . . . . Explosive . | . . . . Electromagnetic . | . . . . Robot Hit Streak 12 | 1 2 12 12 Robot Miss Streak 3 | 3 1 2 3 Penetration Max . | . . . . Secondary Targets . | . . . . Shots Hit Robots 48 | 3 2 27 16 Core Hits 18 | 2 2 8 6 Critical Kills . | . . . . Critical Parts Destroyed . | . . . . Critical Strikes . | . . . . Melee Attacks . | . . . . Impact . | . . . . Slashing . | . . . . Piercing . | . . . . Sneak Attacks . | . . . . Combat Hostiles . | . . . . Follow-up Attacks . | . . . . Damage Inflicted 467 | 26 19 230 192 Guns 458 | 26 19 230 183 Cannons . | . . . . Explosions . | . . . . Melee . | . . . . Ramming 9 | . . . 9 Kinetic 458 | 26 19 230 183 Thermal . | . . . . Explosive . | . . . . Electromagnetic . | . . . . Impact . | . . . . Slashing . | . . . . Piercing . | . . . . Highest Corruption . | . . . . Average Corruption . | . . . . Corruption Purged . | . . . . Corruption Blocked . | . . . . Overload Shots . | . . . . Overflow Damage . | . . . . Projectiles . | . . . . Explosions . | . . . . Melee . | . . . . Knockbacks . | . . . . Impact . | . . . . Kinetic . | . . . . Secondary . | . . . . Self-Inflicted Damage 4 | . . . 4 Shots . | . . . . Rammed 2 | . . . 2 Targets Rammed 2 | . . . 2 Kicked . | . . . . Crushed . | . . . . Highest Temperature 127 | 6 . 27 127 Average Temperature 26 | 6 . 7 37 Received Heat Transfer 776 | 12 . 147 617 Siege Activations . | . . . . Robots Corrupted . | . . . . Combat Hostiles . | . . . . Parts Fried . | . . . . Impact Corruptions . | . . . . Robots Melted . | . . . . Combat Hostiles . | . . . . Parts Melted . | . . . . Heat Transferred . | . . . . Parts Sabotaged . | . . . . Parts Stolen . | . . . . Parts Stripped . | . . . . Power Chain Reactions . | . . . . Alert | -11 -10 -9 -9 ------- Run | Yrd Mat Mat Min Peak Influence 96 | 20 58 96 52 Initial 37 | . 13 24 37 Average 30 | 2 21 70 24 Maximum Alert Level . | . . . . Low Security (%) 100 | 100 100 100 100 Level 1 . | . . . . Level 2 . | . . . . Level 3 . | . . . . Level 4 . | . . . . Level 5 . | . . . . High Security . | . . . . Max Security . | . . . . Squads Dispatched 1 | . 1 . . Investigation . | . . . . Extermination . | . . . . Reinforcement 1 | . 1 . . Assault . | . . . . Garrison . | . . . . Intercept . | . . . . Searches Triggered . | . . . . Construction Impeded . | . . . . Haulers Reinforced . | . . . . Active Scanning Responses . | . . . . Cargo Convoy Interrupts . | . . . . Stealth | -11 -10 -9 -9 --------- Run | Yrd Mat Mat Min Distress Signals 1 | . . 1 . Communications Jammed . | . . . . Distress Signals . | . . . . Times Spotted 29 | 1 6 6 16 Peak Tracking Total 6 | 1 3 3 6 Tactical Retreats 2 | . 1 . 1 Traps | -11 -10 -9 -9 ------- Run | Yrd Mat Mat Min Traps Triggered . | . . . . Indirectly . | . . . . Trap Hack Attempts . | . . . . Triggered . | . . . . Disarmed . | . . . . Reprogrammed . | . . . . Reused . | . . . . Traps Extracted . | . . . . Installed . | . . . . Triggered . | . . . . Machines | -11 -10 -9 -9 ---------- Run | Yrd Mat Mat Min Machines Disabled . | . . . . Max in Single Turn . | . . . . Machines Repaired . | . . . . Machines Dismantled . | . . . . Machines Sabotaged . | . . . . Overloaded Fab Kills . | . . . . Hacking | -11 -10 -9 -9 --------- Run | Yrd Mat Mat Min Machines Accessed 2 | . 2 . . Terminals 2 | . 2 . . Fabricators . | . . . . Repair Stations . | . . . . Recycling Units . | . . . . Scanalyzers . | . . . . Garrison Access . | . . . . Total Hacks 4 | . 4 . . Successful 1 | . 1 . . Failed 3 | . 3 . . Catastrophic . | . . . . Database Lockouts . | . . . . Manual . | . . . . Terminals 4 | . 4 . . Fabricators . | . . . . Repair Stations . | . . . . Recycling Units . | . . . . Scanalyzers . | . . . . Garrison Access . | . . . . Terminal Hacks 1 | . 1 . . Prototype ID Bank 1 | . 1 . . Fabricator Hacks . | . . . . Repair Station Hacks . | . . . . Recycling Unit Hacks . | . . . . Scanalyzer . | . . . . Garrison Access Hacks . | . . . . Unauthorized Hacks . | . . . . Terminals . | . . . . Fabricators . | . . . . Repair Stations . | . . . . Recycling Units . | . . . . Scanalyzers . | . . . . Garrison Access . | . . . . Data Cores Recovered . | . . . . Used . | . . . . Hacking Detections 1 | . 1 . . Full Trace Events . | . . . . Feedback Events . | . . . . Feedback Blocked . | . . . . Robot Schematics Acquired . | . . . . Robots Built . | . . . . Authchips . | . . . . Time . | . . . . Total Robot Build Rating . | . . . . Part Schematics Acquired . | . . . . Parts Built . | . . . . Authchips . | . . . . Time . | . . . . Total Part Build Rating . | . . . . Parts Repaired . | . . . . Time . | . . . . Parts Recycled . | . . . . Recycled Matter . | . . . . Retrieved Matter . | . . . . Retrieved Components . | . . . . Parts Scanalyzed . | . . . . Part Schematics Acquired . | . . . . Parts Damaged . | . . . . Bothacking | -11 -10 -9 -9 ------------ Run | Yrd Mat Mat Min Used RIF Installer . | . . . . Robots Hacked . | . . . . Non-combat . | . . . . Combat . | . . . . Robot Hacks Applied . | . . . . Relay Couplers Released . | . . . . Fabnet Peak Effective % . | . . . . Robots Rewired . | . . . . Allies Hacked . | . . . . Hacks Repelled . | . . . . Allies | -11 -10 -9 -9 -------- Run | Yrd Mat Mat Min Total Allies 3 | . . . 3 Largest Group 3 | . . . 3 Highest-Rated Group 40 | . . . 40 Highest-Rated Ally 16 | . . . 16 Total Orders . | . . . . Ally Attacks 25 | . . . 25 Total Damage 242 | . . . 242 Kills 2 | . . . 2 Allies Corrupted . | . . . . Allies Melted . | . . . . Intel | -11 -10 -9 -9 ------- Run | Yrd Mat Mat Min Robot Analysis Total . | . . . . Derelict Logs Recovered 1 | . . . 1 Drone Launches . | . . . . Drone Recoveries . | . . . . Exploration | -11 -10 -9 -9 ------------- Run | Yrd Mat Mat Min Turns Passed 598 | 66 179 115 238 Spaces Moved 504 | 67 174 78 185 Core 25 | 23 . . 2 Treads . | . . . . Legs 31 | . . . 31 Wheels 448 | 44 174 78 152 Hover . | . . . . Flight . | . . . . Fastest Speed 50 | 50 80 80 80 Average Speed 84 | 69 85 83 89 Slowest Speed 200 | 80 95 95 200 Overloaded Moves . | . . . . Propulsion Burnouts . | . . . . Robots Hopped . | . . . . Cave-ins Triggered . | . . . . Exploration Rate (%) 19 | 5 28 10 33 Regions Visited 3 Branch Regions 1 Pre-discovered Areas 1 | . . . 1 Known Exits Taken . | . . . . Unknown Exits Taken 3 | 1 1 1 . Scrap Searched . | . . . . Spaces Dug . | . . . . Terrain Destroyed . | . . . . Melee . | . . . . Projectile . | . . . . AOE . | . . . . Terrain Rammed . | . . . . Walls Destroyed . | . . . . Machines Disabled . | . . . . Actions | -11 -10 -9 -9 --------- Run | Yrd Mat Mat Min Total 605 | 78 200 99 228 Wait 38 | . 23 . 15 Move 501 | 66 173 77 185 Hop . | . . . . Pick Up 2 | 2 . . . Fast Attach 11 | 4 2 3 2 Attach 2 | 1 . . 1 Detach 2 | . . 2 . Swap . | . . . . Drop 1 | 1 . . . Fire 46 | 4 2 17 23 Melee . | . . . . Ram 2 | . . . 2 Kick . | . . . . Crush . | . . . . Escape Stasis . | . . . . Rewire . | . . . . Trap . | . . . . Miscellaneous . | . . . . Route ------- -11/Scrapyard -10/Materials -9/Materials -9/Mines (discovered 2 exits: [*Mat] / [*Exi]) History --------- Turn | Location | Event 2 | -11/Scrapyard | Met Revision 17 48 | -11/Scrapyard | Discovered new exit (range 8) 67 | -11/Scrapyard | Entered Materials 239 | -10/Materials | Discovered new exit (range 9) 246 | -10/Materials | Entered another Materials area 246 | -9/Materials | Evolved 2 slots: Power x1, Utility x1 325 | -9/Materials | Discovered new exit (range 18) 333 | -9/Materials | Build established: Mutant 361 | -9/Materials | Entered Mines 387 | -9/Mines | Discovered new exit (range 8) 422 | -9/Mines | Deemed a non-threat by the Exiles lab entrance 422 | -9/Mines | Discovered new exit (range 5) 456 | -9/Mines | Assembled infested the area 477 | -9/Mines | Assisted by bots powering up and referring to "LRC-V3" 540 | -9/Mines | Lost 3 allies 561 | -9/Mines | Lost 4 parts (2p2n) 567 | -9/Mines | Core integrity fell below 50% 594 | -9/Mines | Core integrity fell below 20% 599 | -9/Mines | Destroyed by Y-45 Defender with Heavy Assault Rifle Last Messages --------------- Wheel destroyed. Lgt. Ion Engine destroyed. U-05 Engineer lays Concrete. U-05 Engineer destroyed. While in examine/look mode, press 's' to manually set the cursor location as a relative view centerpoint. Try it now. Designate your own position to cancel the effect and resume automated centerpoint adjustments, or reset an automated centerpoint. The manual also describes advanced options for modifying the automation algorithm. K-01 Serf collects debris. as-85663 destroyed. as-27710 suffers critical hit (Destroy). as-27710 destroyed. Aluminum Leg destroyed. as-22968 destroyed. Autogun destroyed. Lgt. Assault Rifle destroyed. Map ----- +----------------------------------------------------+ | ?????????????????????????????????????????????????? | | ??????????????########???????????????????????????? | | ??????????????# #???????????????????????????? | | ?###??????????# #???????????????????????????? | | ## ??????????# #???????????????????????????? | | ?????####### #???????????????????????????? | | ????## % #???????????????????????????? | | ????# %%*%! #???????????????????????????? | | ##??# %%= #???????????????????????????? | | ?# #### % %% ##########??????????????????? | | ? #??????????????????? | | ??# |% #??????????????????? | | ??## ## ######## #??????????????????? | | ??## ######??????# #??????????????????? | | ???# !# ##??????????## ##?????????????????? | | ??# == #####???????????# #?????????????????? | | ??# % ??????????###?### #?????????????????? | | ??# ]##?????????##" ## #?????????????????? | | ??# #?????????#"" # # ##?????????????????? | | ??# " " #?????????#[! / # #??????????????????? | | ??# ##?????????#!! / % #??????????????????? | | ??# ##??????????#"" # #??????????????????? | | ??# ###???????????##"??# ##?????? ????????? | | ??# #????????????????####YY #### r??????? | | ??# #######?????????## % ??????? | | ??# #?????????# @ ?????? | | ??# #?????????# ####### ??????? | | ??####### #?????????## #???????? ??????? | | ##???#### #??????????## ##??????????? ???????? | | #<#### #????????#########????????????????????? | | # ## ## #???????## ##??????????????????????? | | ### ## #???????# < #??????????????????????? | | ??### ### ######### = #??????????????????????? | | ????###?# % % % ##??????????????????????? | | ????????##### ####### ##???????????????????????? | | ????????????# #?????# #????????????????????????? | | ????????????# #?????## #???????????????????????? | | ###########?# #??????## #???????????????????????? | | #?# #???????? #??????????????????????? | | #?# #????????####??????????????????????? | | """ #?# #??????????????????????????????????? | | """ #?# #??????????????????????????????????? | | """ #?# #??????????????????????????????????? | | #?# #??????????????????????????????????? | | """ """ #?# #??????????????????????????????????? | | """ """ #?# #??????????????????????????????????? | | """ """ ### #??????????????????????????????????? | | #??????????????????????????????????? | | #####??????????????????????????????????? | | ###########??????????????????????????????????????? | +----------------------------------------------------+ Best States ------------- Heat Dissipation 28 Energy Generation 17 Energy Capacity 290 Matter Stores 300 Matter Capacity 300 Sight Range 18 Robot Scan Range 14 Terrain Scan Density 10 Evasion (%) 55 Item Schematics ----------------- None Robot Schematics ------------------ None Fabricated ------------ Nothing Alien Tech Used ----------------- None Achievements -------------- None Challenges ------------ None Game ------ Seed TimingDiametricSource Manual? 0 Play Time 00:17:17 Cumulative 1.9 hours Start 2025.03.13 @ 07:19:46 End 2025.03.13 @ 07:35:23 Sessions 1 Manual Loads 0 Difficulty Rogue Special Mode None Game No. 3 Rogue 3 Adventurer 0 Explorer 0 Win Type - Total 0 Types 0/0/0/0/0/0/0/0/0 Lore% 1 Gallery% 3 Achievement% 4 Wizard Run 0 Options --------- Layout 1 ASCII 0 Keyboard 1 Movement Vi Keybinds 1 Fullscreen 1 Font 36/Terminus Map View 26x22 Zoom Use 55% Tactical HUD 0 Map Filters NONE Filters NONE Steam 1 RUN: 05bf8690-cf8f-4e99-a368-b888cfa15be9